[Event "Titled Tuesday Blitz November 07 Late 2023"]
[White "Kavutskiy, Konstantin"]
[Black "patzersame"]
[WhiteFideId "2026384"]
[WhiteElo "2689"]
[BlackElo "2342"]
[Result "1-0"]
[Round "2"]
[TimeControl "180+1"]
[Date "2023.11.07"]
[WhiteClock "0:00:34"]
[BlackClock "0:00:08"]
[Board "74"]

1. d4 {[%clk 0:03:00]}  Nf6 {[%clk 0:02:58]} 2. c4 {[%clk 0:03:00]}  d6 {[%clk 0:02:59]} 3. Nc3 {[%clk 0:03:00]}  g6 {[%clk 0:02:59]} 4. e4 {[%clk 0:03:00]}  Bg7 {[%clk 0:02:59]} 5. h3 {[%clk 0:03:00]}  O-O {[%clk 0:03:00]} 6. Be3 {[%clk 0:03:01]}  c5 {[%clk 0:02:58]} 7. d5 {[%clk 0:03:00]}  Qa5 {[%clk 0:02:58]} 8. Bd3 {[%clk 0:02:59]}  e6 {[%clk 0:02:51]} 9. Nf3 {[%clk 0:02:55]}  exd5 {[%clk 0:02:51]} 10. exd5 {[%clk 0:02:56]}  Re8 {[%clk 0:02:41]} 11. O-O {[%clk 0:02:54]}  Nh5 {[%clk 0:02:36]} 12. Qd2 {[%clk 0:02:47]}  Qd8 {[%clk 0:02:08]} 13. Rfe1 {[%clk 0:02:42]}  Nd7 {[%clk 0:02:01]} 14. Bg5 {[%clk 0:02:38]}  Nhf6 {[%clk 0:01:49]} 15. Rxe8+ {[%clk 0:02:34]}  Qxe8 {[%clk 0:01:48]} 16. Re1 {[%clk 0:02:35]}  Qd8 {[%clk 0:01:42]} 17. Qf4 {[%clk 0:02:32]}  Qb6 {[%clk 0:01:25]} 18. Re2 {[%clk 0:02:17]}  Nh5 {[%clk 0:01:07]} 19. Re8+ {[%clk 0:02:06]}  Nf8 {[%clk 0:01:07]} 20. Qd2 {[%clk 0:02:00]}  Nf6 {[%clk 0:01:04]} 21. Re7 {[%clk 0:01:43]}  Bd7 {[%clk 0:00:58]} 22. b3 {[%clk 0:01:32]}  Re8 {[%clk 0:00:53]} 23. Qe3 {[%clk 0:01:27]}  Qd8 {[%clk 0:00:37]} 24. Rxe8 {[%clk 0:01:27]}  Qxe8 {[%clk 0:00:38]} 25. Qf4 {[%clk 0:01:27]}  Nh5 {[%clk 0:00:35]} 26. Qd2 {[%clk 0:01:16]}  Bf5 {[%clk 0:00:34]} 27. Bxf5 {[%clk 0:01:15]}  gxf5 {[%clk 0:00:35]} 28. Nb5 {[%clk 0:01:13]}  Qd7 {[%clk 0:00:28]} 29. Nxa7 {[%clk 0:01:12]}  Ng6 {[%clk 0:00:27]} 30. Nb5 {[%clk 0:01:09]}  Ne5 {[%clk 0:00:27]} 31. Qe2 {[%clk 0:01:06]}  h6 {[%clk 0:00:22]} 32. Nxe5 {[%clk 0:01:05]}  dxe5 {[%clk 0:00:15]} 33. Bxh6 {[%clk 0:00:58]}  Nf4 {[%clk 0:00:14]} 34. Bxf4 {[%clk 0:00:57]}  exf4 {[%clk 0:00:15]} 35. d6 {[%clk 0:00:55]}  f3 {[%clk 0:00:14]} 36. Qxf3 {[%clk 0:00:54]}  Qe6 {[%clk 0:00:15]} 37. g3 {[%clk 0:00:51]}  Bd4 {[%clk 0:00:13]} 38. Kg2 {[%clk 0:00:49]}  Kf8 {[%clk 0:00:13]} 39. Nxd4 {[%clk 0:00:44]}  cxd4 {[%clk 0:00:13]} 40. c5 {[%clk 0:00:45]}  f4 {[%clk 0:00:13]} 41. Qxb7 {[%clk 0:00:41]}  d3 {[%clk 0:00:12]} 42. Qe7+ {[%clk 0:00:36]}  Qxe7 {[%clk 0:00:12]} 43. dxe7+ {[%clk 0:00:37]}  Kxe7 {[%clk 0:00:13]} 44. Kf1 {[%clk 0:00:36]}  fxg3 {[%clk 0:00:13]} 45. fxg3 {[%clk 0:00:36]}  Ke6 {[%clk 0:00:14]} 46. Ke1 {[%clk 0:00:36]}  Kd5 {[%clk 0:00:14]} 47. b4 {[%clk 0:00:36]}  Kc4 {[%clk 0:00:13]} 48. Kd2 {[%clk 0:00:37]}  Kd4 {[%clk 0:00:05]} 49. c6 {[%clk 0:00:37]}  f5 {[%clk 0:00:05]} 50. c7 {[%clk 0:00:37]}  f4 {[%clk 0:00:05]} 51. c8=Q {[%clk 0:00:36]}  fxg3 {[%clk 0:00:05]} 52. Qd7+ {[%clk 0:00:36]}  Ke4 {[%clk 0:00:06]} 53. Qxd3+ {[%clk 0:00:37]}  Kf4 {[%clk 0:00:06]} 54. Ke2 {[%clk 0:00:36]}  g2 {[%clk 0:00:05]} 55. Kf2 {[%clk 0:00:33]}  g1=Q+ {[%clk 0:00:06]} 56. Kxg1 {[%clk 0:00:31]}  Kg5 {[%clk 0:00:07]} 57. Qe4 {[%clk 0:00:30]}  Kh5 {[%clk 0:00:07]} 58. Qg4+ {[%clk 0:00:30]}  Kh6 {[%clk 0:00:07]} 59. Kg2 {[%clk 0:00:31]}  Kh7 {[%clk 0:00:08]} 60. Kf3 {[%clk 0:00:31]}  Kh8 {[%clk 0:00:08]} 61. Kf4 {[%clk 0:00:32]}  Kh7 {[%clk 0:00:09]} 62. Kf5 {[%clk 0:00:33]}  Kh6 {[%clk 0:00:08]} 63. Kf6 {[%clk 0:00:34]}  Kh7 {[%clk 0:00:08]} 64. Qg7# {[%clk 0:00:34]} 1-0


[Site "https://www.chess.com"]

[Event "Titled Tuesday Blitz November 07 Late 2023"]
[White "Leiva, Gianmarco"]
[Black "Garrido, Denis"]
[WhiteFideId "3804399"]
[BlackFideId "601217"]
[WhiteElo "2686"]
[BlackElo "2314"]
[Result "1-0"]
[Round "2"]
[TimeControl "180+1"]
[Date "2023.11.07"]
[WhiteClock "0:01:13"]
[BlackClock "0:01:22"]
[Board "75"]

1. e4 {[%clk 0:03:00]}  c6 {[%clk 0:02:59]} 2. d4 {[%clk 0:03:00]}  d5 {[%clk 0:02:59]} 3. e5 {[%clk 0:02:56]}  Bf5 {[%clk 0:02:58]} 4. Nf3 {[%clk 0:02:56]}  e6 {[%clk 0:02:57]} 5. Be2 {[%clk 0:02:56]}  Ne7 {[%clk 0:02:56]} 6. O-O {[%clk 0:02:57]}  h6 {[%clk 0:02:56]} 7. a4 {[%clk 0:02:50]}  a5 {[%clk 0:02:54]} 8. c3 {[%clk 0:02:43]}  Nd7 {[%clk 0:02:53]} 9. Re1 {[%clk 0:02:43]}  Qc7 {[%clk 0:02:52]} 10. Bd3 {[%clk 0:02:38]}  g5 {[%clk 0:02:49]} 11. Na3 {[%clk 0:02:26]}  Bg7 {[%clk 0:02:48]} 12. Nc2 {[%clk 0:02:26]}  O-O {[%clk 0:02:45]} 13. Ne3 {[%clk 0:02:11]}  Bxd3 {[%clk 0:02:44]} 14. Qxd3 {[%clk 0:02:12]}  f6 {[%clk 0:02:43]} 15. exf6 {[%clk 0:02:10]}  Nxf6 {[%clk 0:02:40]} 16. h3 {[%clk 0:02:07]}  Rae8 {[%clk 0:02:38]} 17. Ng4 {[%clk 0:02:01]}  Nxg4 {[%clk 0:02:31]} 18. hxg4 {[%clk 0:02:02]}  Rf6 {[%clk 0:02:31]} 19. Ne5 {[%clk 0:02:02]}  Nc8 {[%clk 0:02:30]} 20. f3 {[%clk 0:02:01]}  Nd6 {[%clk 0:02:29]} 21. Be3 {[%clk 0:02:00]}  Nf7 {[%clk 0:02:19]} 22. Bf2 {[%clk 0:01:32]}  Nxe5 {[%clk 0:02:18]} 23. Rxe5 {[%clk 0:01:32]}  Rf7 {[%clk 0:02:11]} 24. Re2 {[%clk 0:01:32]}  e5 {[%clk 0:02:11]} 25. Bg3 {[%clk 0:01:28]}  Rfe7 {[%clk 0:02:09]} 26. Rae1 {[%clk 0:01:28]}  Qb6 {[%clk 0:02:09]} 27. Kh2 {[%clk 0:01:22]}  e4 {[%clk 0:01:52]} 28. Qc2 {[%clk 0:01:17]}  Qd8 {[%clk 0:01:38]} 29. fxe4 {[%clk 0:01:17]}  dxe4 {[%clk 0:01:35]} 30. Rxe4 {[%clk 0:01:18]}  Rxe4 {[%clk 0:01:34]} 31. Rxe4 {[%clk 0:01:19]}  Qd7 {[%clk 0:01:29]} 32. Qb3+ {[%clk 0:01:14]}  Kh8 {[%clk 0:01:28]} 33. Rxe8+ {[%clk 0:01:13]}  Qxe8 {[%clk 0:01:29]} 34. Qxb7 {[%clk 0:01:13]}  Qe4 {[%clk 0:01:27]} 35. Qc8+ {[%clk 0:01:12]}  Kh7 {[%clk 0:01:27]} 36. Qf5+ {[%clk 0:01:13]}  Qxf5 {[%clk 0:01:27]} 37. gxf5 {[%clk 0:01:14]}  Kg8 {[%clk 0:01:27]} 38. Be5 {[%clk 0:01:14]}  Bf8 {[%clk 0:01:26]} 39. g4 {[%clk 0:01:13]}  Kf7 {[%clk 0:01:22]} 40. Bc7 {[%clk 0:01:13]} 1-0


[Site "https://www.chess.com"]

[Event "Titled Tuesday Blitz November 07 Late 2023"]
[White "Arifarsky"]
[Black "le-castor-faineant"]
[WhiteElo "2683"]
[BlackElo "2260"]
[Result "1-0"]
[Round "2"]
[TimeControl "180+1"]
[Date "2023.11.07"]
[WhiteClock "0:00:49"]
[BlackClock "0:00:34"]
[Board "77"]

1. d4 {[%clk 0:02:58]}  Nf6 {[%clk 0:02:59]} 2. Nf3 {[%clk 0:02:55]}  g6 {[%clk 0:02:59]} 3. g3 {[%clk 0:02:53]}  Bg7 {[%clk 0:03:00]} 4. Bg2 {[%clk 0:02:54]}  O-O {[%clk 0:03:00]} 5. O-O {[%clk 0:02:54]}  d6 {[%clk 0:02:59]} 6. c4 {[%clk 0:02:44]}  Nbd7 {[%clk 0:02:58]} 7. Nc3 {[%clk 0:02:35]}  e5 {[%clk 0:02:58]} 8. d5 {[%clk 0:02:30]}  Re8 {[%clk 0:02:56]} 9. e4 {[%clk 0:02:30]}  a5 {[%clk 0:02:55]} 10. h3 {[%clk 0:02:28]}  Nc5 {[%clk 0:02:55]} 11. Qc2 {[%clk 0:02:23]}  Bd7 {[%clk 0:02:45]} 12. Be3 {[%clk 0:02:22]}  Rb8 {[%clk 0:01:59]} 13. a3 {[%clk 0:02:15]}  a4 {[%clk 0:01:57]} 14. Nd2 {[%clk 0:02:11]}  b5 {[%clk 0:01:49]} 15. Bxc5 {[%clk 0:02:05]}  dxc5 {[%clk 0:01:48]} 16. cxb5 {[%clk 0:02:05]}  Bxb5 {[%clk 0:01:48]} 17. Nxb5 {[%clk 0:02:05]}  Rxb5 {[%clk 0:01:48]} 18. Nc4 {[%clk 0:02:02]}  Rb3 {[%clk 0:01:43]} 19. Nd2 {[%clk 0:01:51]}  Rb5 {[%clk 0:01:42]} 20. Rfb1 {[%clk 0:01:52]}  Qb8 {[%clk 0:01:41]} 21. Nc4 {[%clk 0:01:38]}  Qa7 {[%clk 0:01:39]} 22. b3 {[%clk 0:01:31]}  axb3 {[%clk 0:01:38]} 23. Rxb3 {[%clk 0:01:31]}  Rxb3 {[%clk 0:01:38]} 24. Qxb3 {[%clk 0:01:32]}  Rb8 {[%clk 0:01:38]} 25. Qc2 {[%clk 0:01:31]}  Ne8 {[%clk 0:01:34]} 26. Qd2 {[%clk 0:01:23]}  Nd6 {[%clk 0:01:34]} 27. Na5 {[%clk 0:01:23]}  Rb6 {[%clk 0:01:26]} 28. a4 {[%clk 0:01:11]}  Ra6 {[%clk 0:01:22]} 29. Nc6 {[%clk 0:01:11]}  Qa8 {[%clk 0:01:22]} 30. a5 {[%clk 0:01:10]}  Nb7 {[%clk 0:01:13]} 31. Bf1 {[%clk 0:01:06]}  Rb6 {[%clk 0:00:57]} 32. axb6 {[%clk 0:00:58]}  Qxa1 {[%clk 0:00:57]} 33. bxc7 {[%clk 0:00:59]}  Nd6 {[%clk 0:00:56]} 34. Ne7+ {[%clk 0:00:59]}  Kf8 {[%clk 0:00:56]} 35. c8=Q+ {[%clk 0:01:00]}  Nxc8 {[%clk 0:00:56]} 36. Nxc8 {[%clk 0:01:01]}  f5 {[%clk 0:00:47]} 37. d6 {[%clk 0:00:54]}  Ke8 {[%clk 0:00:42]} 38. d7+ {[%clk 0:00:48]}  Kd8 {[%clk 0:00:42]} 39. Nd6 {[%clk 0:00:49]}  Kxd7 {[%clk 0:00:34]} 40. Nxf5+ {[%clk 0:00:49]} 1-0


[Site "https://www.chess.com"]

[Event "Titled Tuesday Blitz November 07 Late 2023"]
[White "Kniazev, Igor"]
[Black "Skvortsov, Andrei"]
[WhiteFideId "4136349"]
[BlackFideId "24108600"]
[WhiteElo "2196"]
[BlackElo "2671"]
[Result "0-1"]
[Round "2"]
[TimeControl "180+1"]
[Date "2023.11.07"]
[WhiteClock "0:00:32"]
[BlackClock "0:00:36"]
[Board "80"]

1. e4 {[%clk 0:02:59]}  d5 {[%clk 0:02:58]} 2. exd5 {[%clk 0:02:59]}  Qxd5 {[%clk 0:02:58]} 3. Nc3 {[%clk 0:03:00]}  Qe5+ {[%clk 0:02:59]} 4. Qe2 {[%clk 0:02:59]}  Qxe2+ {[%clk 0:02:57]} 5. Bxe2 {[%clk 0:02:59]}  Nc6 {[%clk 0:02:56]} 6. Nf3 {[%clk 0:02:59]}  Bf5 {[%clk 0:02:54]} 7. d3 {[%clk 0:02:55]}  O-O-O {[%clk 0:02:54]} 8. a3 {[%clk 0:02:47]}  f6 {[%clk 0:02:53]} 9. Be3 {[%clk 0:02:46]}  e5 {[%clk 0:02:53]} 10. b4 {[%clk 0:02:43]}  a6 {[%clk 0:02:50]} 11. O-O {[%clk 0:02:40]}  Nge7 {[%clk 0:02:50]} 12. b5 {[%clk 0:02:38]}  axb5 {[%clk 0:02:50]} 13. Nxb5 {[%clk 0:02:38]}  Nd5 {[%clk 0:02:50]} 14. Rfd1 {[%clk 0:02:06]}  Nxe3 {[%clk 0:02:49]} 15. fxe3 {[%clk 0:02:06]}  Bc5 {[%clk 0:02:49]} 16. d4 {[%clk 0:02:00]}  exd4 {[%clk 0:02:49]} 17. exd4 {[%clk 0:02:00]}  Bb6 {[%clk 0:02:46]} 18. c4 {[%clk 0:01:55]}  Rhe8 {[%clk 0:02:16]} 19. Bf1 {[%clk 0:01:47]}  Kb8 {[%clk 0:01:31]} 20. c5 {[%clk 0:01:45]}  Ba5 {[%clk 0:01:32]} 21. d5 {[%clk 0:01:42]}  Na7 {[%clk 0:01:26]} 22. d6 {[%clk 0:01:36]}  Nxb5 {[%clk 0:01:16]} 23. Bxb5 {[%clk 0:01:35]}  Re3 {[%clk 0:01:12]} 24. Nd4 {[%clk 0:01:29]}  Bg4 {[%clk 0:01:02]} 25. dxc7+ {[%clk 0:01:16]}  Kxc7 {[%clk 0:01:01]} 26. Kf2 {[%clk 0:01:10]}  Re5 {[%clk 0:00:58]} 27. Be2 {[%clk 0:00:58]}  Rxd4 {[%clk 0:00:45]} 28. Rxd4 {[%clk 0:00:52]}  Bxe2 {[%clk 0:00:42]} 29. Ra4 {[%clk 0:00:42]}  Bd2 {[%clk 0:00:38]} 30. Rc1 {[%clk 0:00:32]}  Bxc1 {[%clk 0:00:36]} 0-1


[Site "https://www.chess.com"]

[Event "Titled Tuesday Blitz November 07 Late 2023"]
[White "Oliveira, Tiago Batista"]
[Black "Domingo Nunez, Ruben"]
[WhiteFideId "2108291"]
[BlackFideId "22245570"]
[WhiteElo "2061"]
[BlackElo "2659"]
[Result "0-1"]
[Round "2"]
[TimeControl "180+1"]
[Date "2023.11.07"]
[WhiteClock "0:00:10"]
[BlackClock "0:01:34"]
[Board "84"]

1. d4 {[%clk 0:02:57]}  g6 {[%clk 0:03:00]} 2. c4 {[%clk 0:02:57]}  Bg7 {[%clk 0:03:01]} 3. e4 {[%clk 0:02:54]}  d6 {[%clk 0:03:02]} 4. Nc3 {[%clk 0:02:52]}  Nd7 {[%clk 0:03:02]} 5. Be2 {[%clk 0:02:51]}  e5 {[%clk 0:03:03]} 6. Be3 {[%clk 0:02:50]}  Ngf6 {[%clk 0:03:02]} 7. Nf3 {[%clk 0:02:49]}  O-O {[%clk 0:03:03]} 8. dxe5 {[%clk 0:02:48]}  dxe5 {[%clk 0:03:03]} 9. O-O {[%clk 0:02:42]}  c6 {[%clk 0:03:04]} 10. h3 {[%clk 0:02:40]}  Qe7 {[%clk 0:03:04]} 11. Qc2 {[%clk 0:02:39]}  Nh5 {[%clk 0:02:56]} 12. a3 {[%clk 0:02:31]}  Nf4 {[%clk 0:02:54]} 13. b4 {[%clk 0:02:28]}  Nf6 {[%clk 0:02:44]} 14. Bc5 {[%clk 0:02:20]}  Qe6 {[%clk 0:02:44]} 15. Bxf8 {[%clk 0:02:14]}  Bxf8 {[%clk 0:02:45]} 16. Ng5 {[%clk 0:01:39]}  Qe7 {[%clk 0:02:45]} 17. h4 {[%clk 0:01:29]}  h6 {[%clk 0:02:32]} 18. Nf3 {[%clk 0:01:28]}  N6h5 {[%clk 0:02:33]} 19. Rfd1 {[%clk 0:01:18]}  Qe6 {[%clk 0:02:27]} 20. g3 {[%clk 0:01:03]}  Qh3 {[%clk 0:02:02]} 21. Bf1 {[%clk 0:00:59]}  Qg4 {[%clk 0:02:01]} 22. Nh2 {[%clk 0:00:55]}  Nh3+ {[%clk 0:01:58]} 23. Bxh3 {[%clk 0:00:50]}  Qxh3 {[%clk 0:01:58]} 24. Rd3 {[%clk 0:00:37]}  Qe6 {[%clk 0:01:54]} 25. Nd1 {[%clk 0:00:29]}  Be7 {[%clk 0:01:52]} 26. Ne3 {[%clk 0:00:29]}  Nf6 {[%clk 0:01:51]} 27. f3 {[%clk 0:00:24]}  Kg7 {[%clk 0:01:50]} 28. c5 {[%clk 0:00:24]}  b6 {[%clk 0:01:50]} 29. Rad1 {[%clk 0:00:23]}  Ba6 {[%clk 0:01:50]} 30. Rd6 {[%clk 0:00:22]}  Bxd6 {[%clk 0:01:41]} 31. Rxd6 {[%clk 0:00:22]}  Qe8 {[%clk 0:01:41]} 32. Nhg4 {[%clk 0:00:20]}  Nh5 {[%clk 0:01:38]} 33. Qc3 {[%clk 0:00:16]}  f6 {[%clk 0:01:34]} 34. f4 {[%clk 0:00:15]}  Nxg3 {[%clk 0:01:33]} 35. fxe5 {[%clk 0:00:14]}  Ne2+ {[%clk 0:01:34]} 36. Kf2 {[%clk 0:00:13]}  Nxc3 {[%clk 0:01:34]} 37. exf6+ {[%clk 0:00:14]}  Kh8 {[%clk 0:01:34]} 38. Nxh6 {[%clk 0:00:10]}  Nxe4+ {[%clk 0:01:34]} 0-1


[Site "https://www.chess.com"]

[Event "Titled Tuesday Blitz November 07 Late 2023"]
[White "JackRodgers"]
[Black "Maksimovic, Bojan"]
[BlackFideId "14408120"]
[WhiteElo "2503"]
[BlackElo "2735"]
[Result "0-1"]
[Round "2"]
[TimeControl "180+1"]
[Date "2023.11.07"]
[WhiteClock "0:00:04"]
[BlackClock "0:00:44"]
[Board "86"]

1. d4 {[%clk 0:03:00]}  g6 {[%clk 0:03:00]} 2. h4 {[%clk 0:02:59]}  Nf6 {[%clk 0:02:55]} 3. Bg5 {[%clk 0:02:59]}  d5 {[%clk 0:02:51]} 4. Bxf6 {[%clk 0:02:57]}  exf6 {[%clk 0:02:52]} 5. h5 {[%clk 0:02:58]}  Bg7 {[%clk 0:02:52]} 6. h6 {[%clk 0:02:50]}  Bf8 {[%clk 0:02:52]} 7. e3 {[%clk 0:02:50]}  Bd6 {[%clk 0:02:51]} 8. c4 {[%clk 0:02:49]}  dxc4 {[%clk 0:02:51]} 9. Bxc4 {[%clk 0:02:50]}  O-O {[%clk 0:02:52]} 10. Nc3 {[%clk 0:02:49]}  Nd7 {[%clk 0:02:52]} 11. Nf3 {[%clk 0:02:47]}  f5 {[%clk 0:02:51]} 12. Qb3 {[%clk 0:02:36]}  c6 {[%clk 0:02:50]} 13. O-O-O {[%clk 0:02:34]}  Qe7 {[%clk 0:02:50]} 14. Rdg1 {[%clk 0:02:27]}  b5 {[%clk 0:02:49]} 15. Bd3 {[%clk 0:02:22]}  Nf6 {[%clk 0:02:48]} 16. Ng5 {[%clk 0:02:19]}  Ng4 {[%clk 0:02:47]} 17. Nh3 {[%clk 0:02:16]}  Be6 {[%clk 0:02:47]} 18. Qc2 {[%clk 0:02:15]}  a5 {[%clk 0:02:40]} 19. e4 {[%clk 0:02:00]}  fxe4 {[%clk 0:02:27]} 20. Nxe4 {[%clk 0:02:01]}  Rfd8 {[%clk 0:02:15]} 21. Re1 {[%clk 0:01:54]}  Bd5 {[%clk 0:01:53]} 22. f3 {[%clk 0:01:46]}  Nf6 {[%clk 0:01:52]} 23. Nc5 {[%clk 0:01:31]}  Qa7 {[%clk 0:01:41]} 24. Re2 {[%clk 0:01:21]}  Bxc5 {[%clk 0:01:41]} 25. dxc5 {[%clk 0:01:20]}  Nd7 {[%clk 0:01:41]} 26. Kb1 {[%clk 0:01:11]}  Qxc5 {[%clk 0:01:41]} 27. Qd2 {[%clk 0:01:08]}  Qd4 {[%clk 0:01:28]} 28. Rd1 {[%clk 0:00:56]}  Nc5 {[%clk 0:01:24]} 29. Bc2 {[%clk 0:00:36]}  Bxa2+ {[%clk 0:01:16]} 30. Kc1 {[%clk 0:00:20]}  Qxd2+ {[%clk 0:01:14]} 31. Rexd2 {[%clk 0:00:21]}  Rxd2 {[%clk 0:01:13]} 32. Rxd2 {[%clk 0:00:22]}  Be6 {[%clk 0:01:11]} 33. Ng5 {[%clk 0:00:20]}  a4 {[%clk 0:01:02]} 34. Rd6 {[%clk 0:00:20]}  Rc8 {[%clk 0:01:02]} 35. Be4 {[%clk 0:00:18]}  Nxe4 {[%clk 0:00:59]} 36. Nxe4 {[%clk 0:00:19]}  Kf8 {[%clk 0:01:00]} 37. g4 {[%clk 0:00:13]}  Ke7 {[%clk 0:01:00]} 38. Rd2 {[%clk 0:00:13]}  f6 {[%clk 0:01:00]} 39. g5 {[%clk 0:00:13]}  fxg5 {[%clk 0:00:59]} 40. Nxg5 {[%clk 0:00:14]}  Bd5 {[%clk 0:00:57]} 41. Re2+ {[%clk 0:00:11]}  Kf6 {[%clk 0:00:57]} 42. Nxh7+ {[%clk 0:00:11]}  Kf5 {[%clk 0:00:58]} 43. Re7 {[%clk 0:00:05]}  Rh8 {[%clk 0:00:58]} 44. Kd2 {[%clk 0:00:05]}  Bg8 {[%clk 0:00:58]} 45. Ke3 {[%clk 0:00:02]}  Rxh7 {[%clk 0:00:55]} 46. Re8 {[%clk 0:00:02]}  Bf7 {[%clk 0:00:51]} 47. Rf8 {[%clk 0:00:02]}  Kf6 {[%clk 0:00:50]} 48. Kf4 {[%clk 0:00:03]}  Rxh6 {[%clk 0:00:50]} 49. Rc8 {[%clk 0:00:04]}  Rh4+ {[%clk 0:00:44]} 50. Kg3 {[%clk 0:00:04]}  Rh3+ {[%clk 0:00:44]} 0-1


[Site "https://www.chess.com"]

[Event "Titled Tuesday Blitz November 07 Late 2023"]
[White "Hilary46"]
[Black "Zakarian, David"]
[BlackFideId "13301276"]
[WhiteElo "2703"]
[BlackElo "2417"]
[Result "1-0"]
[Round "2"]
[TimeControl "180+1"]
[Date "2023.11.07"]
[WhiteClock "0:00:13"]
[BlackClock "0:00:00"]
[Board "87"]

1. e4 {[%clk 0:03:00]}  c5 {[%clk 0:02:59]} 2. Nf3 {[%clk 0:03:00]}  e6 {[%clk 0:03:00]} 3. d4 {[%clk 0:02:58]}  cxd4 {[%clk 0:03:00]} 4. Nxd4 {[%clk 0:02:59]}  a6 {[%clk 0:03:01]} 5. Bd3 {[%clk 0:02:58]}  Nf6 {[%clk 0:02:59]} 6. O-O {[%clk 0:02:57]}  d6 {[%clk 0:02:59]} 7. c4 {[%clk 0:02:55]}  Qc7 {[%clk 0:03:00]} 8. Nc3 {[%clk 0:02:55]}  g6 {[%clk 0:02:58]} 9. Be2 {[%clk 0:02:54]}  Bg7 {[%clk 0:02:59]} 10. Bg5 {[%clk 0:02:48]}  Nbd7 {[%clk 0:02:55]} 11. Qd2 {[%clk 0:02:37]}  O-O {[%clk 0:02:55]} 12. Rfd1 {[%clk 0:02:37]}  Nc5 {[%clk 0:02:42]} 13. Bf3 {[%clk 0:02:29]}  Ncd7 {[%clk 0:02:25]} 14. b3 {[%clk 0:02:25]}  Ne5 {[%clk 0:02:21]} 15. Be2 {[%clk 0:02:25]}  b6 {[%clk 0:02:21]} 16. Rac1 {[%clk 0:02:15]}  Bb7 {[%clk 0:02:20]} 17. f3 {[%clk 0:02:16]}  Rac8 {[%clk 0:02:16]} 18. Kh1 {[%clk 0:02:09]}  Rfd8 {[%clk 0:02:06]} 19. a4 {[%clk 0:02:03]}  Qb8 {[%clk 0:01:44]} 20. Qe3 {[%clk 0:01:49]}  d5 {[%clk 0:01:22]} 21. exd5 {[%clk 0:01:45]}  exd5 {[%clk 0:01:21]} 22. Bf4 {[%clk 0:01:41]}  Re8 {[%clk 0:01:06]} 23. Nxd5 {[%clk 0:01:39]}  Nxd5 {[%clk 0:01:03]} 24. cxd5 {[%clk 0:01:40]}  Rxc1 {[%clk 0:01:01]} 25. Qxc1 {[%clk 0:01:32]}  Bxd5 {[%clk 0:00:56]} 26. Bxa6 {[%clk 0:01:31]}  Qa8 {[%clk 0:00:54]} 27. Bb5 {[%clk 0:01:29]}  Nxf3 {[%clk 0:00:38]} 28. Nxf3 {[%clk 0:01:28]}  Bxf3 {[%clk 0:00:39]} 29. Bxe8 {[%clk 0:01:27]}  Bxd1 {[%clk 0:00:34]} 30. Bxf7+ {[%clk 0:01:25]}  Kxf7 {[%clk 0:00:32]} 31. Qxd1 {[%clk 0:01:26]}  Qc6 {[%clk 0:00:26]} 32. h3 {[%clk 0:01:21]}  Bf6 {[%clk 0:00:19]} 33. Qd3 {[%clk 0:01:19]}  Kg7 {[%clk 0:00:18]} 34. Qc4 {[%clk 0:01:11]}  Qd7 {[%clk 0:00:15]} 35. Qc7 {[%clk 0:01:10]}  Qxc7 {[%clk 0:00:15]} 36. Bxc7 {[%clk 0:01:11]}  Bd4 {[%clk 0:00:15]} 37. g4 {[%clk 0:01:01]}  Kf7 {[%clk 0:00:14]} 38. Kg2 {[%clk 0:01:01]}  Ke6 {[%clk 0:00:14]} 39. Kf3 {[%clk 0:00:52]}  Kd5 {[%clk 0:00:14]} 40. Kf4 {[%clk 0:00:42]}  Kc5 {[%clk 0:00:12]} 41. Kg5 {[%clk 0:00:30]}  Be3+ {[%clk 0:00:09]} 42. Kf6 {[%clk 0:00:29]}  Bd4+ {[%clk 0:00:04]} 43. Kf7 {[%clk 0:00:26]}  Kb4 {[%clk 0:00:05]} 44. Kg8 {[%clk 0:00:26]}  h5 {[%clk 0:00:05]} 45. Kh7 {[%clk 0:00:23]}  hxg4 {[%clk 0:00:04]} 46. hxg4 {[%clk 0:00:24]}  Kxb3 {[%clk 0:00:03]} 47. a5 {[%clk 0:00:23]}  bxa5 {[%clk 0:00:03]} 48. Bxa5 {[%clk 0:00:24]}  g5 {[%clk 0:00:03]} 49. Kg6 {[%clk 0:00:25]}  Be3 {[%clk 0:00:03]} 50. Bd8 {[%clk 0:00:25]}  Kc4 {[%clk 0:00:03]} 51. Bxg5 {[%clk 0:00:26]}  Bc5 {[%clk 0:00:03]} 52. Kf5 {[%clk 0:00:15]}  Kd5 {[%clk 0:00:04]} 53. Bh4 {[%clk 0:00:12]}  Be3 {[%clk 0:00:00]} 54. Bg3 {[%clk 0:00:13]} 1-0


[Site "https://www.chess.com"]

[Event "Titled Tuesday Blitz November 07 Late 2023"]
[White "Balla, Tamas-Kristof"]
[Black "Wadsworth, Matthew J"]
[WhiteFideId "1208497"]
[BlackFideId "415804"]
[WhiteElo "2339"]
[BlackElo "2624"]
[Result "1-0"]
[Round "2"]
[TimeControl "180+1"]
[Date "2023.11.07"]
[WhiteClock "0:00:08"]
[BlackClock "0:00:01"]
[Board "89"]

1. e4 {[%clk 0:03:00]}  c5 {[%clk 0:02:58]} 2. c3 {[%clk 0:03:01]}  e6 {[%clk 0:02:56]} 3. d4 {[%clk 0:03:01]}  d5 {[%clk 0:02:52]} 4. exd5 {[%clk 0:03:01]}  Qxd5 {[%clk 0:02:50]} 5. Nf3 {[%clk 0:03:01]}  Nf6 {[%clk 0:02:51]} 6. Be3 {[%clk 0:03:02]}  cxd4 {[%clk 0:02:46]} 7. cxd4 {[%clk 0:03:02]}  Nc6 {[%clk 0:02:46]} 8. Nc3 {[%clk 0:03:02]}  Qd8 {[%clk 0:02:46]} 9. Bd3 {[%clk 0:03:02]}  Be7 {[%clk 0:02:47]} 10. O-O {[%clk 0:03:02]}  O-O {[%clk 0:02:47]} 11. Qe2 {[%clk 0:03:00]}  b6 {[%clk 0:02:48]} 12. a3 {[%clk 0:03:01]}  Bb7 {[%clk 0:02:48]} 13. Rad1 {[%clk 0:03:01]}  Rc8 {[%clk 0:02:42]} 14. Bb1 {[%clk 0:03:00]}  Re8 {[%clk 0:02:30]} 15. Rfe1 {[%clk 0:02:58]}  Nd5 {[%clk 0:02:23]} 16. Ne4 {[%clk 0:02:25]}  g6 {[%clk 0:02:08]} 17. Ne5 {[%clk 0:02:24]}  Nxe3 {[%clk 0:02:01]} 18. Qxe3 {[%clk 0:02:22]}  Qc7 {[%clk 0:01:45]} 19. Ng4 {[%clk 0:01:19]}  Qd8 {[%clk 0:01:29]} 20. Qh6 {[%clk 0:01:06]}  f5 {[%clk 0:01:22]} 21. Ba2 {[%clk 0:01:02]}  Nxd4 {[%clk 0:00:53]} 22. Bxe6+ {[%clk 0:00:50]}  Nxe6 {[%clk 0:00:53]} 23. Rxd8 {[%clk 0:00:50]}  Rexd8 {[%clk 0:00:49]} 24. Ngf6+ {[%clk 0:00:46]}  Bxf6 {[%clk 0:00:48]} 25. Nxf6+ {[%clk 0:00:46]}  Kf7 {[%clk 0:00:49]} 26. Nxh7 {[%clk 0:00:35]}  Re8 {[%clk 0:00:48]} 27. Rxe6 {[%clk 0:00:24]}  Kxe6 {[%clk 0:00:41]} 28. Qxg6+ {[%clk 0:00:24]}  Ke5 {[%clk 0:00:29]} 29. h3 {[%clk 0:00:22]}  Be4 {[%clk 0:00:10]} 30. Ng5 {[%clk 0:00:19]}  Rg8 {[%clk 0:00:09]} 31. Qh5 {[%clk 0:00:13]}  Rc1+ {[%clk 0:00:07]} 32. Kh2 {[%clk 0:00:13]}  Rc2 {[%clk 0:00:07]} 33. f3 {[%clk 0:00:13]}  Bd5 {[%clk 0:00:06]} 34. Qh7 {[%clk 0:00:11]}  Kf6 {[%clk 0:00:05]} 35. h4 {[%clk 0:00:08]}  Rcc8 {[%clk 0:00:04]} 36. Qh6+ {[%clk 0:00:09]}  Rg6 {[%clk 0:00:03]} 37. Qh7 {[%clk 0:00:08]}  Rcg8 {[%clk 0:00:02]} 38. Qd7 {[%clk 0:00:07]}  Ba2 {[%clk 0:00:02]} 39. Qd6+ {[%clk 0:00:08]}  Kg7 {[%clk 0:00:02]} 40. Qe7+ {[%clk 0:00:08]}  Kh8 {[%clk 0:00:01]} 41. Qh7# {[%clk 0:00:08]} 1-0


[Site "https://www.chess.com"]